[Event "XII Paracin Festival 2019"]
[Site "Paracin"]
[Date "2019.07.08"]
[Round "4.5"]
[White "Harvey, Marcus R"]
[Black "Korpa, Bence"]
[Result "0-1"]
[ECO "A05"]
[WhiteElo "2402"]
[BlackElo "2523"]
[Annotator "ChessBase"]
[PlyCount "66"]
[EventDate "2019.07.05"]
[EventType "swiss"]
[EventCountry "SRB"]
[SourceTitle "playchess.com"]
[Source "ChessBase"]
[SourceQuality "1"]
[TimeControl "5400+30"]

1. Nf3 {[%emt 0:01:57]} Nf6 {[%emt 0:00:00]} 2. b3 {[%emt 0:00:04]} g6 {[%emt 0:00:24]} 3. Bb2 {[%emt 0:00:08]} Bg7 {[%emt 0:00:07]} 4. e3 {[%emt 0:00:09]} O-O {[%emt 0:00:13]} 5. c4 {[%emt 0:00:29]} d6 {[%emt 0:00:12]} 6. d4 {[%emt 0:00:06]} Nbd7 {[%emt 0:00:08]} 7. Be2 {[%emt 0:00:03]} Re8 {[%emt 0:00:14]} 8. O-O {[%emt 0:00:14]} c6 {[%emt 0:00:06]} 9. Qc2 {[%emt 0:00:52]} e5 {[%emt 0:00:10]} 10. Nc3 {[%emt 0:00:47]} e4 {[%emt 0:00:17]} 11. Nd2 {[%emt 0:00:08]} Qe7 {[%emt 0:00:07]} 12. b4 {[%emt 0:00:17]} h5 {[%emt 0:00:15]} 13. Rae1 {[%emt 0:06:19]} Nf8 {[%emt 0:02:49]} 14. f3 {[%emt 0:05:37]} exf3 {[%emt 0:03:38]} 15. Bxf3 {[%emt 0:00:19]} Ng4 {[%emt 0:11:37]} 16. Nd1 {[%emt 0:05:21]} Qh4 {[%emt 0:18:18]} 17. h3 {[%emt 0:05:22]} Nh7 {[%emt 0:05:30]} 18. hxg4 {[%emt 0:05:57]} hxg4 {[%emt 0:00:07]} 19. Nf2 {[%emt 0:30:45]} g3 {[%emt 0:28:05]} 20. Nh3 {[%emt 0:01:23]} Ng5 {[%emt 0:00:06]} 21. Bd1 {[%emt 0:21:12]} Bxh3 {[%emt 0:07:32]} 22. gxh3 {[%emt 0:00:34]} Nxh3+ {[%emt 0:00:34]} 23. Kg2 {[%emt 0:00:05]} Nf4+ {[%emt 0:01:42]} 24. Kf3 {[%emt 0:01:48]} g2 {[%emt 0:02:07]} 25. Rg1 {[%emt 0:01:20]} Bf6 {[%emt 0:01:38]} 26. Ne4 {[%emt 0:08:06]} Rxe4 {[%emt 0:00:37]} 27. Qf2 {[%emt 0:03:30]} Qh5+ {[%emt 0:02:24]} 28. Kxe4 {[%emt 0:00:07]} Qf5+ {[%emt 0:00:21]} 29. Kf3 {[%emt 0:00:27]} Nh3+ {[%emt 0:00:50]} 30. Kxg2 {[%emt 0:00:14]} Qxf2+ {[%emt 0:00:10]} 31. Kxh3 {[%emt 0:00:09]} Kg7 {[%emt 0:00:16]} 32. Bc3 {[%emt 0:01:13]} Rh8+ {[%emt 0:00:08]} 33. Kg4 {[%emt 0:00:09]} Rh4# {[%emt 0:00:05]} 0-1

[Event "XII Paracin Festival 2019"]
[Site "Paracin"]
[Date "2019.07.08"]
[Round "4.6"]
[White "Vishnu Prasanna. V"]
[Black "Liu, Zhaoqi"]
[Result "1-0"]
[ECO "A46"]
[WhiteElo "2505"]
[BlackElo "2386"]
[Annotator "ChessBase"]
[PlyCount "113"]
[EventDate "2019.07.05"]
[EventType "swiss"]
[EventCountry "SRB"]
[SourceTitle "playchess.com"]
[Source "ChessBase"]
[SourceQuality "1"]
[TimeControl "5400+30"]

1. d4 {[%emt 0:00:00]} Nf6 {[%emt 0:03:01]} 2. Nf3 {[%emt 0:00:00]} c5 {[%emt 0:00:04]} 3. e3 {[%emt 0:00:00]} g6 4. d5 {[%emt 0:00:37]} Bg7 {[%emt 0:01:07]} 5. Nc3 {[%emt 0:00:06]} d6 {[%emt 0:00:45]} 6. h3 {[%emt 0:01:28]} O-O {[%emt 0:00:21]} 7. Bc4 {[%emt 0:00:07]} a6 {[%emt 0:05:24]} 8. a4 {[%emt 0:00:18]} e6 {[%emt 0:06:15]} 9. O-O {[%emt 0:00:31]} e5 {[%emt 0:08:12]} 10. Nd2 {[%emt 0:02:40]} Ne8 {[%emt 0:03:35]} 11. Be2 {[%emt 0:02:38]} b6 {[%emt 0:11:39]} 12. Rb1 {[%emt 0:06:41]} f5 {[%emt 0:08:48]} 13. e4 {[%emt 0:12:37]} a5 {[%emt 0:15:55]} 14. Nc4 {[%emt 0:06:16]} f4 {[%emt 0:03:03]} 15. Nb5 {[%emt 0:03:07]} h5 {[%emt 0:02:57]} 16. c3 {[%emt 0:03:10]} Na6 {[%emt 0:05:00]} 17. Bd2 {[%emt 0:01:18]} Rf7 {[%emt 0:00:23]} 18. Be1 {[%emt 0:08:45]} Bf8 {[%emt 0:00:48]} 19. f3 {[%emt 0:00:30]} g5 {[%emt 0:00:30]} 20. Bd3 {[%emt 0:07:23]} Rb8 {[%emt 0:02:21]} 21. Kf2 {[%emt 0:01:02]} Rh7 {[%emt 0:05:22]} 22. Rh1 {[%emt 0:01:44]} Bd7 {[%emt 0:03:16]} 23. Qb3 {[%emt 0:05:53]} Bxb5 {[%emt 0:01:09]} 24. Qxb5 {[%emt 0:02:28]} Nac7 {[%emt 0:01:03]} 25. Qc6 {[%emt 0:03:16]} Na8 {[%emt 0:00:20]} 26. Qb5 {[%emt 0:03:11]} Nac7 {[%emt 0:00:58]} 27. Qb3 {[%emt 0:00:06]} b5 {[%emt 0:02:10]} 28. axb5 {[%emt 0:01:20]} Nxb5 {[%emt 0:00:07]} 29. Qa4 {[%emt 0:01:42]} Ra7 {[%emt 0:00:07]} 30. Nxe5 {[%emt 0:05:23]} dxe5 {[%emt 0:00:05]} 31. Bxb5 {[%emt 0:00:05]} Nd6 {[%emt 0:00:04]} 32. Bc6 {[%emt 0:01:59]} Qb6 {[%emt 0:00:13]} 33. c4 {[%emt 0:00:31]} Qa6 {[%emt 0:02:40]} 34. Bc3 {[%emt 0:03:07]} Nxc4 {[%emt 0:02:05]} 35. d6 {[%emt 0:00:16]} Nxd6 {[%emt 0:00:05]} 36. Bxe5 {[%emt 0:01:00]} Rb4 {[%emt 0:00:48]} 37. Bd5+ {[%emt 0:00:11]} Kh7 {[%emt 0:02:01]} 38. Qd1 {[%emt 0:04:04]} Bg7 {[%emt 0:00:15]} 39. Bc3 {[%emt 0:00:54]} Bd4+ {[%emt 0:00:30]} 40. Bxd4 {[%emt 0:01:12]} Rxd4 {[%emt 0:00:06]} 41. Qc2 {[%emt 0:00:09]} Nc4 {[%emt 0:00:35]} 42. Bxc4 {[%emt 0:04:46]} Rxc4 {[%emt 0:01:04]} 43. Qe2 {[%emt 0:00:26]} Rd4 {[%emt 0:00:54]} 44. Rhd1 {[%emt 0:00:43]} Qb6 {[%emt 0:00:43]} 45. Rxd4 {[%emt 0:01:27]} cxd4 {[%emt 0:00:01]} 46. Qd3 {[%emt 0:00:05]} Re7 {[%emt 0:00:06]} 47. Kg1 {[%emt 0:00:34]} Kg7 {[%emt 0:00:18]} 48. Rc1 {[%emt 0:00:57]} Kf6 {[%emt 0:01:19]} 49. Rc8 {[%emt 0:00:54]} Qb4 {[%emt 0:01:01]} 50. Rc6+ {[%emt 0:00:51]} Ke5 {[%emt 0:01:28]} 51. Rc1 {[%emt 0:01:31]} Qxb2 {[%emt 0:02:57]} 52. Rc5+ {[%emt 0:00:07]} Kf6 {[%emt 0:00:04]} 53. Qa6+ {[%emt 0:00:40]} Kf7 {[%emt 0:00:52]} 54. Rf5+ {[%emt 0:00:07]} Kg8 {[%emt 0:00:36]} 55. Rxg5+ {[%emt 0:00:10]} Rg7 {[%emt 0:00:23]} 56. Qe6+ {[%emt 0:00:09]} Kf8 {[%emt 0:00:25]} 57. Rf5+ {[%emt 0:00:05]} 1-0

[Event "XII Paracin Festival 2019"]
[Site "Paracin"]
[Date "2019.07.08"]
[Round "4.7"]
[White "Koksal, Ege"]
[Black "Stojanovic, Mihajlo"]
[Result "1/2-1/2"]
[ECO "D02"]
[WhiteElo "2368"]
[BlackElo "2483"]
[Annotator "ChessBase"]
[PlyCount "41"]
[EventDate "2019.07.05"]
[EventType "swiss"]
[EventCountry "SRB"]
[SourceTitle "playchess.com"]
[Source "ChessBase"]
[SourceQuality "1"]
[TimeControl "5400+30"]

1. d4 {[%emt 0:02:29]} d5 {[%emt 0:00:00]} 2. Nf3 {[%emt 0:00:04]} c6 {[%emt 0:00:19]} 3. e3 {[%emt 0:00:27]} Bf5 {[%emt 0:00:58]} 4. Bd3 {[%emt 0:00:16]} Bxd3 {[%emt 0:01:00]} 5. Qxd3 {[%emt 0:00:01]} Nf6 {[%emt 0:00:21]} 6. O-O {[%emt 0:00:02]} e6 {[%emt 0:00:13]} 7. c4 {[%emt 0:00:01]} Nbd7 {[%emt 0:00:32]} 8. Nc3 {[%emt 0:00:02]} Be7 {[%emt 0:00:26]} 9. b3 {[%emt 0:02:19]} O-O {[%emt 0:00:10]} 10. Bb2 {[%emt 0:00:02]} Qc7 {[%emt 0:04:47]} 11. e4 {[%emt 0:02:33]} dxe4 {[%emt 0:00:10]} 12. Nxe4 {[%emt 0:00:02]} Rad8 {[%emt 0:01:31]} 13. Rad1 {[%emt 0:02:39]} Nxe4 {[%emt 0:09:08]} 14. Qxe4 {[%emt 0:01:35]} Rfe8 {[%emt 0:01:38]} 15. Qe2 {[%emt 0:02:06]} h6 {[%emt 0:09:44]} 16. Rd3 {[%emt 0:03:32]} Qa5 {[%emt 0:11:36]} 17. Rfd1 {[%emt 0:01:47]} Ba3 {[%emt 0:01:07]} 18. Bc3 {[%emt 0:01:57]} Bb4 {[%emt 0:00:09]} 19. Bb2 {[%emt 0:15:00]} Ba3 {[%emt 0:00:08]} 20. Bc3 {[%emt 0:03:10]} Bb4 {[%emt 0:00:08]} 21. Bb2 {[%emt 0:00:04]} 1/2-1/2

[Event "XII Paracin Festival 2019"]
[Site "Paracin"]
[Date "2019.07.08"]
[Round "4.8"]
[White "Kosic, Dragan"]
[Black "Nestorovic, Dejan"]
[Result "1-0"]
[ECO "A45"]
[WhiteElo "2482"]
[BlackElo "2341"]
[Annotator "ChessBase"]
[PlyCount "89"]
[EventDate "2019.07.05"]
[EventType "swiss"]
[EventCountry "SRB"]
[SourceTitle "playchess.com"]
[Source "ChessBase"]
[SourceQuality "1"]
[TimeControl "5400+30"]

1. d4 {[%emt 0:01:47]} Nf6 {[%emt 0:00:00]} 2. Nc3 {[%emt 0:00:10]} d5 {[%emt 0:00:00]} 3. Bf4 {[%emt 0:00:07]} Bf5 {[%emt 0:04:18]} 4. e3 {[%emt 0:01:50]} e6 {[%emt 0:00:54]} 5. Nf3 {[%emt 0:02:34]} Bd6 {[%emt 0:05:04]} 6. Ne5 {[%emt 0:00:18]} h6 {[%emt 0:05:39]} 7. Be2 {[%emt 0:03:07]} Nbd7 {[%emt 0:08:45]} 8. g4 {[%emt 0:04:37]} Bh7 {[%emt 0:02:38]} 9. f3 {[%emt 0:01:32]} Qe7 {[%emt 0:12:01]} 10. Qd2 {[%emt 0:05:49]} a6 {[%emt 0:00:43]} 11. h4 {[%emt 0:01:10]} c5 {[%emt 0:01:41]} 12. Nd1 {[%emt 0:07:49]} Rc8 {[%emt 0:03:24]} 13. c3 {[%emt 0:02:13]} Nb6 {[%emt 0:02:36]} 14. Nf2 {[%emt 0:03:28]} Nfd7 {[%emt 0:04:45]} 15. g5 {[%emt 0:04:38]} Bxe5 {[%emt 0:14:19]} 16. dxe5 {[%emt 0:00:54]} h5 {[%emt 0:00:08]} 17. b3 {[%emt 0:01:48]} O-O {[%emt 0:00:52]} 18. Bg3 {[%emt 0:05:56]} Rfd8 {[%emt 0:05:22]} 19. O-O {[%emt 0:02:16]} Nb8 {[%emt 0:01:51]} 20. f4 {[%emt 0:00:46]} Bg6 {[%emt 0:00:55]} 21. Bf3 {[%emt 0:01:31]} Nc6 {[%emt 0:01:20]} 22. Rfd1 {[%emt 0:03:05]} d4 {[%emt 0:01:09]} 23. Rac1 {[%emt 0:15:09]} Nd5 {[%emt 0:07:56]} 24. cxd4 {[%emt 0:08:18]} cxd4 {[%emt 0:00:08]} 25. exd4 {[%emt 0:00:33]} Qa3 {[%emt 0:00:08]} 26. Kg2 {[%emt 0:07:26]} Ncb4 {[%emt 0:00:49]} 27. Be4 {[%emt 0:08:27]} Bxe4+ {[%emt 0:04:15]} 28. Nxe4 {[%emt 0:00:05]} Qxa2 {[%emt 0:00:10]} 29. Qxa2 {[%emt 0:02:52]} Nxa2 {[%emt 0:00:09]} 30. Rxc8 {[%emt 0:00:22]} Rxc8 {[%emt 0:00:13]} 31. Kf3 {[%emt 0:01:03]} Nc1 {[%emt 0:01:51]} 32. Be1 {[%emt 0:00:32]} Nxb3 {[%emt 0:00:57]} 33. Nd6 {[%emt 0:00:32]} Rc7 {[%emt 0:01:13]} 34. f5 {[%emt 0:00:37]} b5 {[%emt 0:02:11]} 35. Rd3 {[%emt 0:00:59]} Na1 {[%emt 0:02:09]} 36. g6 {[%emt 0:00:44]} fxg6 {[%emt 0:00:25]} 37. fxe6 {[%emt 0:00:11]} b4 {[%emt 0:01:31]} 38. Ke4 {[%emt 0:00:20]} Nc3+ {[%emt 0:00:01]} 39. Bxc3 {[%emt 0:00:35]} bxc3 {[%emt 0:00:02]} 40. Rxc3 {[%emt 0:00:30]} Rxc3 {[%emt 0:00:07]} 41. e7 {[%emt 0:00:03]} Rc8 {[%emt 0:00:06]} 42. Nxc8 {[%emt 0:00:08]} Kf7 {[%emt 0:00:12]} 43. d5 {[%emt 0:00:50]} Nb3 {[%emt 0:00:27]} 44. e6+ {[%emt 0:00:29]} Ke8 {[%emt 0:00:06]} 45. d6 {[%emt 0:00:11]} 1-0

[Event "XII Paracin Festival 2019"]
[Site "Paracin"]
[Date "2019.07.08"]
[Round "4.9"]
[White "Tanriverdi, Enes"]
[Black "Petrov, Martin"]
[Result "1/2-1/2"]
[ECO "E15"]
[WhiteElo "2374"]
[BlackElo "2480"]
[Annotator "ChessBase"]
[PlyCount "77"]
[EventDate "2019.07.05"]
[EventType "swiss"]
[EventCountry "SRB"]
[SourceTitle "playchess.com"]
[Source "ChessBase"]
[SourceQuality "1"]
[TimeControl "5400+30"]

1. d4 Nf6 2. c4 e6 3. Nf3 b6 4. g3 Ba6 5. Qc2 c5 6. d5 exd5 7. cxd5 Bb7 8. Bg2 Nxd5 9. O-O Be7 10. Rd1 Nc6 11. Qa4 Nf6 12. Nh4 O-O 13. Nc3 g6 14. Bg5 Re8 15. Nb5 Na5 16. Nd6 Bxg2 17. Nxg2 Rf8 18. Bh6 Nc6 19. Bxf8 Qxf8 20. Ne4 Nd4 21. Nxf6+ Bxf6 22. e3 Nf3+ 23. Kh1 Bxb2 24. Rab1 Bg7 25. Rxd7 Qe8 26. Qd1 Nd4 27. Rd5 Nb5 28. Rxb5 Qxb5 29. Nf4 Qc6 30. Kg1 c4 31. Rd6 Qc5 32. Rd5 Qc6 33. Rd6 Qc5 34. Rd5 Qc8 35. Rd7 c3 36. Qd5 Qe8 37. Rxf7 Qxf7 38. Qxa8+ Bf8 39. Qc8 1/2-1/2

[Event "XII Paracin Festival 2019"]
[Site "Paracin"]
[Date "2019.07.08"]
[Round "4.10"]
[White "Apaydin, Fethi"]
[Black "Stankovic, Milos"]
[Result "1/2-1/2"]
[ECO "B10"]
[WhiteElo "2310"]
[BlackElo "2462"]
[Annotator "ChessBase"]
[PlyCount "138"]
[EventDate "2019.07.05"]
[EventType "swiss"]
[EventCountry "SRB"]
[SourceTitle "playchess.com"]
[Source "ChessBase"]
[SourceQuality "1"]
[TimeControl "5400+30"]

1. e4 c6 {[%emt 0:00:37]} 2. Nc3 {[%emt 0:01:00]} d5 {[%emt 0:00:22]} 3. Nf3 {[%emt 0:00:04]} dxe4 {[%emt 0:00:39]} 4. Nxe4 {[%emt 0:00:21]} Nf6 {[%emt 0:00:30]} 5. Qe2 {[%emt 0:00:08]} Nxe4 {[%emt 0:03:23]} 6. Qxe4 {[%emt 0:04:38]} Qd5 {[%emt 0:00:31]} 7. Qf4 {[%emt 0:00:09]} Qf5 {[%emt 0:01:14]} 8. Qe3 {[%emt 0:00:15]} Qe6 {[%emt 0:03:15]} 9. Be2 {[%emt 0:02:02]} Qxe3 {[%emt 0:02:47]} 10. fxe3 {[%emt 0:00:50]} g6 {[%emt 0:02:52]} 11. O-O {[%emt 0:05:40]} Bg7 {[%emt 0:02:30]} 12. Bc4 {[%emt 0:03:04]} O-O {[%emt 0:01:22]} 13. Ng5 {[%emt 0:02:19]} e6 {[%emt 0:01:44]} 14. d4 {[%emt 0:06:44]} Nd7 {[%emt 0:07:15]} 15. Bd2 {[%emt 0:18:29]} b5 {[%emt 0:07:33]} 16. Be2 {[%emt 0:21:50]} Bf6 {[%emt 0:20:31]} 17. Nf3 {[%emt 0:03:06]} c5 {[%emt 0:03:58]} 18. Bxb5 {[%emt 0:02:22]} Rb8 {[%emt 0:00:15]} 19. Bxd7 {[%emt 0:02:47]} Bxd7 {[%emt 0:00:08]} 20. Bc3 {[%emt 0:01:22]} cxd4 {[%emt 0:05:28]} 21. exd4 {[%emt 0:01:21]} Bg7 {[%emt 0:01:12]} 22. Ne5 {[%emt 0:03:15]} Bb5 {[%emt 0:00:19]} 23. Rf2 {[%emt 0:01:50]} f6 {[%emt 0:01:08]} 24. Nf3 {[%emt 0:00:24]} Rfc8 {[%emt 0:00:43]} 25. Re1 {[%emt 0:02:10]} Bd7 {[%emt 0:00:20]} 26. Nd2 {[%emt 0:01:13]} f5 {[%emt 0:02:22]} 27. Nb3 {[%emt 0:03:09]} Bf8 {[%emt 0:02:53]} 28. Rd2 {[%emt 0:02:09]} Rb7 {[%emt 0:03:32]} 29. Re5 {[%emt 0:09:21]} Bd6 {[%emt 0:01:07]} 30. Nc5 {[%emt 0:01:20]} Bxe5 {[%emt 0:01:23]} 31. Nxb7 {[%emt 0:00:03]} Bf4 {[%emt 0:00:33]} 32. Re2 {[%emt 0:00:16]} Kf7 {[%emt 0:03:09]} 33. Re1 {[%emt 0:02:08]} Bb5 {[%emt 0:01:13]} 34. g3 {[%emt 0:00:27]} Bb8 {[%emt 0:00:18]} 35. Na5 {[%emt 0:00:35]} g5 {[%emt 0:00:50]} 36. Nb3 {[%emt 0:00:09]} h5 {[%emt 0:00:50]} 37. d5 {[%emt 0:00:54]} exd5 {[%emt 0:00:26]} 38. Nd4 {[%emt 0:00:01]} Bd7 {[%emt 0:00:52]} 39. Nf3 {[%emt 0:00:40]} g4 {[%emt 0:00:37]} 40. Ng5+ {[%emt 0:00:51]} Kg6 {[%emt 0:01:21]} 41. Re7 {[%emt 0:00:02]} d4 {[%emt 0:03:28]} 42. Bxd4 {[%emt 0:00:02]} Kxg5 {[%emt 0:00:09]} 43. Rg7+ {[%emt 0:00:19]} Kh6 {[%emt 0:00:10]} 44. Rxd7 {[%emt 0:00:04]} Rxc2 {[%emt 0:00:11]} 45. Rb7 {[%emt 0:00:31]} Bc7 {[%emt 0:00:17]} 46. Be3+ {[%emt 0:01:03]} Kg6 {[%emt 0:00:17]} 47. Rxa7 {[%emt 0:00:19]} h4 {[%emt 0:00:18]} 48. Ra6+ {[%emt 0:01:18]} Kf7 {[%emt 0:00:25]} 49. Bd4 {[%emt 0:00:53]} h3 {[%emt 0:04:26]} 50. Rf6+ {[%emt 0:00:30]} Ke7 {[%emt 0:00:23]} 51. Rxf5 {[%emt 0:00:01]} Rg2+ {[%emt 0:00:08]} 52. Kh1 {[%emt 0:00:59]} Rd2 {[%emt 0:00:21]} 53. Bf6+ {[%emt 0:00:13]} Ke6 {[%emt 0:00:10]} 54. Rf1 {[%emt 0:00:01]} Be5 {[%emt 0:04:10]} 55. Bxe5 {[%emt 0:00:21]} Kxe5 {[%emt 0:00:02]} 56. Rb1 {[%emt 0:00:40]} Kd5 {[%emt 0:00:31]} 57. a4 {[%emt 0:00:18]} Kc5 {[%emt 0:00:14]} 58. b4+ {[%emt 0:00:17]} Kb6 {[%emt 0:00:05]} 59. Kg1 {[%emt 0:01:34]} Rg2+ {[%emt 0:00:10]} 60. Kh1 {[%emt 0:00:33]} Ra2 {[%emt 0:00:11]} 61. Kg1 {[%emt 0:00:33]} Rg2+ {[%emt 0:00:03]} 62. Kh1 {[%emt 0:00:28]} Ra2 {[%emt 0:00:09]} 63. b5 {[%emt 0:00:32]} Rxa4 {[%emt 0:00:15]} 64. Kg1 {[%emt 0:00:17]} Ra2 {[%emt 0:00:06]} 65. Rb4 {[%emt 0:00:34]} Rg2+ {[%emt 0:00:43]} 66. Kh1 {[%emt 0:00:29]} Rc2 {[%emt 0:00:15]} 67. Rb1 {[%emt 0:00:33]} Ra2 {[%emt 0:00:06]} 68. Kg1 {[%emt 0:00:33]} Rg2+ {[%emt 0:00:10]} 69. Kh1 {[%emt 0:00:31]} Ra2 {[%emt 0:00:06]} 1/2-1/2

[Event "XII Paracin Festival 2019"]
[Site "Paracin"]
[Date "2019.07.08"]
[Round "4.11"]
[White "Lajthajm, Borko"]
[Black "Baglan, Esat"]
[Result "1/2-1/2"]
[ECO "B44"]
[WhiteElo "2424"]
[BlackElo "2336"]
[Annotator "NA"]
[PlyCount "77"]
[EventDate "2019.07.05"]
[EventType "swiss"]
[EventCountry "SRB"]
[SourceTitle "playchess.com"]
[Source "ChessBase"]
[SourceQuality "1"]
[TimeControl "5400+30"]

1. e4 {[%emt 0:00:00]} c5 {[%emt 0:00:00]} 2. Nf3 {[%emt 0:00:00]} e6 {[%emt 0:00:00]} 3. d4 {[%emt 0:00:00]} cxd4 {[%emt 0:00:04]} 4. Nxd4 {[%emt 0:00:01]} Nc6 {[%emt 0:01:05]} 5. Be3 {[%emt 0:01:24]} Nf6 {[%emt 0:02:09]} 6. Bd3 {[%emt 0:01:22]} Qc7 {[%emt 0:03:32]} 7. Nc3 {[%emt 0:01:35]} a6 {[%emt 0:05:39]} 8. a3 {[%emt 0:07:00]} Nxd4 {[%emt 0:13:43]} 9. Bxd4 {[%emt 0:00:20]} Bc5 {[%emt 0:00:15]} 10. Be2 {[%emt 0:02:25]} d6 {[%emt 0:04:12]} 11. Qd2 {[%emt 0:00:33]} b5 {[%emt 0:08:00]} 12. Rd1 {[%emt 0:09:36]} Bb7 {[%emt 0:10:08]} 13. f3 {[%emt 0:12:45]} O-O {[%emt 0:11:28]} 14. Bxc5 {[%emt 0:01:13]} dxc5 {[%emt 0:00:14]} 15. Qd6 {[%emt 0:00:22]} Rfc8 {[%emt 0:02:29]} 16. Qxc7 {[%emt 0:03:22]} Rxc7 {[%emt 0:00:03]} 17. Kf2 {[%emt 0:00:21]} Kf8 {[%emt 0:01:10]} 18. Ke3 {[%emt 0:01:57]} Bc6 {[%emt 0:04:00]} 19. Rd2 {[%emt 0:00:56]} Ke7 {[%emt 0:01:00]} 20. Ra1 {[%emt 0:00:33]} Rb7 {[%emt 0:03:02]} 21. b3 {[%emt 0:00:24]} Nd7 {[%emt 0:00:48]} 22. a4 {[%emt 0:00:20]} b4 {[%emt 0:00:31]} 23. Nd1 {[%emt 0:00:12]} a5 {[%emt 0:01:09]} 24. Nb2 {[%emt 0:00:05]} Nb6 {[%emt 0:01:14]} 25. Rad1 {[%emt 0:01:02]} Rd7 {[%emt 0:01:18]} 26. Rxd7+ {[%emt 0:05:48]} Bxd7 {[%emt 0:00:12]} 27. Bb5 {[%emt 0:02:10]} Rd8 {[%emt 0:05:27]} 28. Bxd7 {[%emt 0:01:35]} Rxd7 {[%emt 0:00:11]} 29. Rxd7+ {[%emt 0:00:10]} Kxd7 {[%emt 0:00:12]} 30. Kd3 {[%emt 0:00:11]} Kd6 {[%emt 0:03:22]} 31. Nc4+ {[%emt 0:00:42]} Nxc4 {[%emt 0:00:05]} 32. Kxc4 {[%emt 0:00:08]} Kc6 {[%emt 0:00:04]} 33. f4 {[%emt 0:03:34]} Kb6 {[%emt 0:01:06]} 34. g4 {[%emt 0:00:58]} Kc6 {[%emt 0:01:07]} 35. g5 {[%emt 0:01:12]} Kb6 {[%emt 0:02:30]} 36. h4 {[%emt 0:03:56]} g6 {[%emt 0:01:46]} 37. c3 {[%emt 0:02:36]} Kc6 {[%emt 0:00:09]} 38. Kd3 {[%emt 0:00:21]} Kc7 {[%emt 0:02:32]} 39. Kc4 {[%emt 0:04:30]} 1/2-1/2

[Event "XII Paracin Festival 2019"]
[Site "Paracin"]
[Date "2019.07.08"]
[Round "4.12"]
[White "Pastar, Slaven"]
[Black "Ratkovic, Milovan"]
[Result "0-1"]
[ECO "B10"]
[WhiteElo "2276"]
[BlackElo "2407"]
[Annotator "NA"]
[PlyCount "124"]
[EventDate "2019.07.05"]
[EventType "swiss"]
[EventCountry "SRB"]
[SourceTitle "playchess.com"]
[Source "ChessBase"]
[SourceQuality "1"]
[TimeControl "5400+30"]

1. e4 {[%emt 0:00:00]} c6 {[%emt 0:00:00]} 2. Nc3 {[%emt 0:00:00]} d5 {[%emt 0:00:16]} 3. Nf3 {[%emt 0:00:10]} a6 {[%emt 0:02:47]} 4. d4 {[%emt 0:03:17]} Bg4 {[%emt 0:00:29]} 5. Be2 {[%emt 0:00:42]} e6 {[%emt 0:00:34]} 6. h3 Bh5 {[%emt 0:00:47]} 7. Ne5 {[%emt 0:17:16]} Bxe2 {[%emt 0:02:59]} 8. Qxe2 {[%emt 0:00:59]} Nf6 {[%emt 0:01:11]} 9. Bg5 {[%emt 0:02:46]} Be7 {[%emt 0:01:08]} 10. O-O {[%emt 0:03:30]} O-O {[%emt 0:02:54]} 11. exd5 {[%emt 0:03:40]} cxd5 {[%emt 0:02:19]} 12. Qf3 {[%emt 0:09:29]} Nfd7 {[%emt 0:02:58]} 13. Bxe7 {[%emt 0:08:48]} Qxe7 {[%emt 0:01:40]} 14. Rfe1 {[%emt 0:00:20]} Nxe5 {[%emt 0:01:21]} 15. dxe5 {[%emt 0:00:53]} Nc6 {[%emt 0:02:03]} 16. Rad1 {[%emt 0:06:06]} Qb4 17. b3 {[%emt 0:12:08]} Rac8 {[%emt 0:07:27]} 18. Nb1 {[%emt 0:01:18]} Nd4 {[%emt 0:03:49]} 19. Qd3 {[%emt 0:01:07]} Nxc2 {[%emt 0:01:02]} 20. Re2 {[%emt 0:00:11]} Na3 {[%emt 0:01:19]} 21. Nxa3 {[%emt 0:01:00]} Qxa3 {[%emt 0:00:10]} 22. f4 {[%emt 0:01:41]} Qc5+ {[%emt 0:06:33]} 23. Rf2 {[%emt 0:01:11]} Qc3 {[%emt 0:01:05]} 24. Qe2 {[%emt 0:00:57]} g6 {[%emt 0:02:25]} 25. Kh2 {[%emt 0:01:12]} Qb4 {[%emt 0:06:05]} 26. f5 {[%emt 0:02:43]} exf5 {[%emt 0:02:34]} 27. Rxd5 {[%emt 0:00:32]} Rfd8 {[%emt 0:01:51]} 28. Rxd8+ {[%emt 0:06:51]} Rxd8 {[%emt 0:00:08]} 29. Qf3 {[%emt 0:00:51]} Re8 {[%emt 0:07:14]} 30. Re2 {[%emt 0:01:28]} Qb5 {[%emt 0:01:00]} 31. Qe3 {[%emt 0:02:22]} Re6 {[%emt 0:01:01]} 32. a4 {[%emt 0:01:38]} Qb4 {[%emt 0:01:55]} 33. Rc2 {[%emt 0:02:02]} Qe4 {[%emt 0:06:36]} 34. Rc8+ {[%emt 0:04:10]} Kg7 {[%emt 0:00:12]} 35. Qc5 {[%emt 0:00:54]} Qxe5+ {[%emt 0:01:03]} 36. Qxe5+ {[%emt 0:00:01]} Rxe5 {[%emt 0:00:08]} 37. Rc7 {[%emt 0:00:04]} b5 {[%emt 0:00:52]} 38. Rc6 {[%emt 0:00:15]} bxa4 {[%emt 0:00:42]} 39. bxa4 {[%emt 0:00:03]} Re6 {[%emt 0:02:46]} 40. Rc5 {[%emt 0:00:08]} Kf6 {[%emt 0:00:29]} 41. Kg3 g5 42. Rc7 {[%emt 0:02:08]} Kg6 {[%emt 0:02:24]} 43. Ra7 {[%emt 0:03:01]} f4+ {[%emt 0:01:42]} 44. Kf3 {[%emt 0:00:28]} f6 {[%emt 0:00:42]} 45. a5 {[%emt 0:00:24]} h6 {[%emt 0:00:23]} 46. Ra8 {[%emt 0:00:17]} Kf5 {[%emt 0:00:40]} 47. Ra7 {[%emt 0:00:09]} h5 {[%emt 0:00:31]} 48. Kf2 {[%emt 0:01:16]} g4 {[%emt 0:00:55]} 49. Rh7 {[%emt 0:02:04]} g3+ {[%emt 0:01:42]} 50. Kf1 {[%emt 0:00:16]} Kg5 {[%emt 0:02:34]} 51. Rg7+ {[%emt 0:00:36]} Kh4 {[%emt 0:01:12]} 52. Rb7 {[%emt 0:00:45]} Re5 {[%emt 0:00:11]} 53. Rb6 {[%emt 0:00:30]} Rxa5 {[%emt 0:00:30]} 54. Rxf6 {[%emt 0:00:07]} Ra1+ {[%emt 0:00:07]} 55. Ke2 {[%emt 0:00:25]} Ra2+ 56. Kf1 {[%emt 0:00:03]} Rf2+ {[%emt 0:00:58]} 57. Kg1 {[%emt 0:00:38]} a5 58. Rf5 {[%emt 0:00:25]} a4 {[%emt 0:01:41]} 59. Ra5 {[%emt 0:00:10]} Ra2 {[%emt 0:01:04]} 60. Kf1 {[%emt 0:00:32]} a3 {[%emt 0:00:37]} 61. Ra4 {[%emt 0:00:29]} Rf2+ 62. Kg1 a2 {[%emt 0:00:49]} 0-1